fUSD/lending_fUSD_20240718
["ID","MTS","AMOUNT","RATE_DAILY","PERIOD"]
[332603219,1721339431887,-19655.44717849,0.00011599,2]
[332603220,1721339431898,-500.0,0.00011615,2]
[332603221,1721339431908,-727.91,0.00011615,2]
[332603222,1721339431918,-18450.86,0.00011636,2]
[332603223,1721339431927,-227.54,0.0001165,2]
[332603224,1721339431937,-566.64,0.00011661,2]
[332603225,1721339431946,-200.0,0.00011661,2]
[332603226,1721339431956,-500.0,0.00011685,2]
[332603227,1721339431966,-1163.95,0.00011686,2]
[332603228,1721339431976,-469.86,0.00011712,2]
[332603229,1721339431986,-150.0,0.00011809,2]
[332603230,1721339431996,-2080.25632101,0.00011851,2]
[332603232,1721339432006,-150.0,0.00011858,2]
[332603234,1721339432015,-205.31,0.00011859,2]
[332603236,1721339432024,-321.14,0.00011859,2]
[332603238,1721339432035,-449.67,0.00011859,2]
[332603240,1721339432045,-4205.73,0.00011859,2]
[332603241,1721339432054,-250.0,0.00011871,2]
[332603244,1721339432064,-1233.89,0.00011919,2]
[332603246,1721339432074,-2348.02,0.00011919,2]
[332603248,1721339432083,-239.64,0.00011928,2]
[332603250,1721339432092,-256.0,0.00011933,2]
[332603252,1721339432102,-200.0,0.00011935,2]
[332603253,1721339432111,-150.99,0.00011935,2]
[332603255,1721339432121,-453.42,0.00011979,2]
[332603258,1721339432131,-1201.76,0.00012189,2]
[332603260,1721339432140,-999.99,0.00012189,2]
[332603262,1721339432150,-22503.07,0.00012189,2]
[332603264,1721339432159,-2655.27,0.00012523,2]
[332603265,1721339432168,-499.99,0.00012523,2]
[332603267,1721339432178,-2655.27,0.00012527,2]
[332603269,1721339432187,-2655.27,0.0001253,2]
[332603271,1721339432200,-2655.27,0.00012533,2]
[332603273,1721339432210,-2655.27,0.00012536,2]
[332603275,1721339432220,-2655.27,0.0001254,2]
[332603277,1721339432229,-172.34,0.00012541,2]
[332603279,1721339432239,-2655.27,0.00012543,2]
[332603281,1721339432248,-2655.27,0.00012546,2]
[332603283,1721339432258,-2655.27,0.0001255,2]
[332603285,1721339432267,-2655.27,0.00012553,2]
[332603287,1721339432276,-2655.27,0.00012556,2]
[332603289,1721339432290,-2655.27,0.00012559,2]
[332603291,1721339432299,-2655.27,0.00012563,2]
[332603293,1721339432309,-2655.27,0.00012566,2]
[332603295,1721339432318,-2655.27,0.00012569,2]
[332603297,1721339432330,-2655.27,0.00012573,2]
[332603299,1721339432340,-2655.27,0.00012576,2]
[332603301,1721339432349,-2655.27,0.00012579,2]
[332603303,1721339432360,-2655.27,0.00012582,2]
[332603305,1721339432369,-2655.27,0.00012586,2]
[332603307,1721339432378,-150.0,0.000126,2]
[332603308,1721339432388,-556.62,0.00012615,2]
[332603309,1721339432397,-187.88,0.00012808,2]
[332603310,1721339432407,-5400.14,0.00012846,2]
[332603311,1721339432416,-150.0,0.00013067,2]
[332603312,1721339432426,-173.48,0.0001307,2]
[332603314,1721339432435,-469.86,0.00013176,2]
[332603315,1721339432445,-3115.19689425,0.00013378,2]
[332603317,1721339432455,-5608.94443968,0.00013398,2]
[332603319,1721339432465,-400.0,0.000134,4]
[332603321,1721339432475,-256.0,0.00013425,2]
[332603324,1721339432484,-800.0,0.000135,4]
[332603325,1721339432494,-371.91705911,0.000135,2]
[332603328,1721339432503,-311.29215967,0.000135,2]
[332603329,1721339432514,-150.0,0.00013533,2]
[332603330,1721339432523,-155.38783042,0.00013583,2]
[332603331,1721339432533,-3529.85567582,0.00013583,2]
[332603332,1721339432542,-47123.0,0.00013584,2]
[332603333,1721339432553,-233306.3657,0.000136,2]
[332603334,1721339432562,-2500.0,0.000136,2]
[332603335,1721339432572,-1300.0,0.000136,4]
[332603336,1721339432581,-688.78490428,0.00013659,2]
[332603337,1721339432591,-1000.0,0.0001366,2]
[332603338,1721339432601,-168.62,0.00013699,2]
[332603339,1721339432610,-340.68,0.00013699,2]
[332603340,1721339432619,-250.0,0.00013699,2]
[332603341,1721339432629,-30094.889,0.000137,2]
[332603342,1721339432639,-1700.0,0.000137,5]
[332603343,1721339432648,-49228.0,0.000137,2]
[332603344,1721339432660,-3960.5705,0.0001376,2]
[332603345,1721339432669,-9770.5726,0.0001376,2]
[332603346,1721339432679,-252.98679953,0.0001376,2]
[332603347,1721339432688,-248.13765487,0.00013794,2]
[332603348,1721339432698,-252.9867995,0.00013795,2]
[332603349,1721339432707,-4381.85982864,0.00013799,2]
[332603350,1721339432718,-2200.0,0.000138,5]
[332603351,1721339432727,-65568.9688292,0.000138,2]
[332603352,1721339432736,-252.9867995,0.0001383,2]
[332603353,1721339432747,-1243.07431,0.0001386,2]
[332603354,1721339432756,-252.9867995,0.00013865,2]
[332603355,1721339432766,-14008.92854198,0.00013879,2]
[332603356,1721339432775,-286.60278834,0.00013889,2]
[332603357,1721339432785,-155.55,0.0001389,2]
[332603358,1721339432795,-462.35092215,0.00013899,2]
[332603359,1721339432804,-327.775,0.000139,2]
[332603360,1721339432814,-1429.5831,0.000139,2]
[332603361,1721339432823,-175.48904366,0.000139,2]
[332603362,1721339432832,-169.84462217,0.000139,2]
[332603363,1721339432842,-162.30891768,0.000139,2]
[332603364,1721339432851,-400.0,0.000139,5]
[332603365,1721339432860,-1240.90385455,0.000139,2]
[332603366,1721339432872,-166.339282,0.000139,2]
[332603367,1721339432881,-252.9867995,0.000139,2]
[332603368,1721339432891,-641.46867605,0.000139,2]
[332603369,1721339432900,-2861.41952242,0.000139,2]
[332603370,1721339432910,-166.985069,0.00013973,2]
[332603371,1721339432920,-1500.0,0.00013989,2]
[332603372,1721339432929,-2624.24139058,0.0001399,2]
[332603373,1721339432938,-155.55,0.0001399,2]
[332603374,1721339432948,-155.55,0.0001399,2]
[332603375,1721339432958,-155.55,0.0001399,2]
[332603376,1721339432968,-155.55,0.0001399,2]
[332603377,1721339432978,-155.55,0.0001399,2]
[332603378,1721339432987,-155.55,0.0001399,2]
[332603379,1721339432997,-155.55,0.0001399,2]
[332603380,1721339433007,-155.55,0.0001399,2]
[332603381,1721339433016,-150.01,0.00013999,2]
[332603382,1721339433026,-5937.4410809,0.00013999,2]
[332603383,1721339433038,-835.4681348,0.00013999,2]
[332603384,1721339433048,-208.55018496,0.00013999,2]
[332603385,1721339433057,-222014.87964904,0.00014,2]
[332603386,1721339433071,-349.70936002,0.00014,2]
[332603387,1721339433083,-547.007568,0.00014,2]
[332603388,1721339433100,-3546.95296747,0.00014,2]
[332603389,1721339433112,-320.42550549,0.00014,2]
[332603390,1721339433123,-757321.56563959,0.00014,2]
[332603391,1721339433135,-500.0,0.00014,2]
[332603392,1721339433154,-295.44814184,0.00014,2]
[332603434,1721339437979,-739.5697,0.00013484,2]
[332603436,1721339437990,-246.09095221,0.00013997,2]
[332603438,1721339437999,-679.03934779,0.00014,2]
[332603441,1721339438015,-158951.63086933,0.00014,2]
[332603444,1721339438040,-16903.10158934,0.00014,2]
[332603446,1721339438054,-12960.54994052,0.00014,2]
[332603449,1721339438065,-1922.29868715,0.00014,2]
[332603475,1721339438830,-1490.43650887,0.00014,2]
[332603476,1721339438841,-354.23051344,0.00014,2]
[332603477,1721339438868,-300.001004,0.00014,2]
[332603493,1721339439767,-890.40343046,0.00011261,2]
[332603494,1721339439777,-835.4681348,0.00013996,2]
[332603495,1721339439786,-174.28609018,0.00014,2]
[332603496,1721339439799,-2457.325799,0.00014,2]
[332603497,1721339440125,-2297.4020911,0.00013721,2]
[332603567,1721339442784,-912.19740041,0.00013721,2]
[332603568,1721339442895,-1478.74967494,0.00013721,2]
[332603571,1721339443630,-702.22,0.00013721,2]
[332603572,1721339443642,-1388.82081271,0.00013721,2]
[332603573,1721339446118,-671.72,0.00013721,2]
[332603574,1721339446130,-557.89002084,0.00013721,2]
[332603575,1721339446139,-2123.30673554,0.00014,2]
[332603576,1721339446902,-112592.17826441,0.00014,2]
[332603577,1721339447044,-13642.66972,0.00014,2]
[332603578,1721339928063,150.0,0.00010661,2]
[332603579,1721339928086,150.0,0.00010661,2]
[332603580,1721339928107,131.6,0.00010661,2]
[332603581,1721339980649,13846.63295875,0.00010661,2]
[332603582,1721340005820,150.0,0.00010661,2]
[332603583,1721340005841,8.70478125,0.00010661,2]
[332603584,1721340034584,-1706.01053776,0.00011206,2]
[332603585,1721340034606,-155.0,0.00011206,2]
[332603586,1721340034629,-115.98946224,0.00011206,2]
[332603587,1721340243569,150.0,0.00011106,2]
[332603588,1721340243596,12.14215494,0.00011106,2]
[332603589,1721340325569,150.0,0.00011106,2]
[332603590,1721340325593,150.0,0.00011106,2]
[332603591,1721340325616,150.0,0.00011106,2]
[332603592,1721340325639,150.0,0.00011106,2]
[332603593,1721340325661,150.0,0.00011106,2]
[332603594,1721340325683,150.0,0.00011106,2]
[332603595,1721340325705,150.0,0.00011106,2]
[332603596,1721340325726,150.0,0.00011106,2]
[332603597,1721340325748,150.0,0.00011106,2]
[332603598,1721340325770,150.0,0.00011106,2]
[332603599,1721340325793,150.0,0.00011106,2]
[332603600,1721340325816,150.0,0.00011106,2]
[332603601,1721340325838,150.0,0.00011106,2]
[332603602,1721340325859,150.0,0.00011106,2]
[332603603,1721340325882,150.0,0.00011106,2]
[332603604,1721340325904,150.0,0.00011106,2]
[332603605,1721340325925,150.0,0.00011106,2]
[332603606,1721340325947,150.0,0.00011106,2]
[332603607,1721340325969,150.0,0.00011106,2]
[332603608,1721340325991,371.93912466,0.00011106,2]
[332603609,1721340349520,150.0,0.00011105,2]
[332603610,1721340349547,42.74468166,0.00011105,2]
[332603627,1721340544104,150.0,9.901e-05,2]
[332603628,1721340544126,260.02,9.901e-05,2]
[332603664,1721340631897,-9857.7437,0.00011425,2]
[332603667,1721340631907,-300.0,0.00011828,2]
[332603669,1721340631917,-500.0,0.0001183,2]
[332603670,1721340631927,-172.34,0.00011882,2]
[332603672,1721340631936,-200.0,0.00011886,2]
[332603674,1721340631945,-159.02,0.00011932,2]
[332603677,1721340631956,-150.0,0.00011933,2]
[332603678,1721340631965,-195.92672898,0.0001196,2]
[332603680,1721340631977,-548.34318324,0.0001196,2]
[332603682,1721340631992,-602.4599999,0.0001196,2]
[332603684,1721340632003,-331.9599993,0.0001196,2]
[332603686,1721340632025,-5331.04283747,0.0001196,2]
[332603688,1721340632101,-1528.17725111,0.0001196,2]
[332603689,1721340632111,-236.09,0.0001198,2]
[332603690,1721340632122,-11706.52,0.00012055,2]
[332603691,1721340632132,-500.0,0.00012098,2]
[332603692,1721340632143,-250.0,0.00012125,2]
[332603693,1721340632153,-150.99,0.00012125,2]
[332603694,1721340632164,-499.99,0.00012125,2]
[332603695,1721340632174,-608.54,0.00012127,2]
[332603696,1721340632185,-390.02,0.00012127,2]
[332603697,1721340632196,-900.96,0.00012143,2]
[332603698,1721340632206,-187.9,0.00012158,2]
[332603699,1721340632217,-410.02,0.00012165,2]
[332603701,1721340632227,-1977.0,0.00012349,2]
[332603703,1721340632237,-503.88,0.0001235,2]
[332603705,1721340632247,-5810.7,0.0001235,2]
[332603707,1721340632257,-150.0,0.00012397,2]
[332603709,1721340632266,-23900.0,0.00012398,2]
[332603711,1721340632276,-321.97,0.00012531,2]
[332603713,1721340632285,-150.99,0.00012531,2]
[332603715,1721340632295,-190.15,0.0001255,2]
[332603717,1721340632304,-155.0,0.0001255,2]
[332603719,1721340632314,-364.95974836,0.0001255,2]
[332603721,1721340632324,-1000.0,0.00012551,2]
[332603723,1721340632333,-2524.31,0.00012551,2]
[332603725,1721340632343,-150.0,0.000126,2]
[332603727,1721340632352,-745.65,0.00012707,2]
[332603729,1721340632362,-176.49,0.00012868,2]
[332603731,1721340632371,-420.0,0.00012987,2]
[332603733,1721340632381,-173.47,0.00013091,2]
[332603735,1721340632390,-259.2268,0.00013284,2]
[332603737,1721340632400,-3761.0858,0.000133,2]
[332603739,1721340632409,-304.84513288,0.00013378,2]
[332603741,1721340632419,-322.0699297,0.00013378,2]
[332603743,1721340632428,-2734.32636627,0.00013378,2]
[332603745,1721340632438,-14993.7331,0.00013384,2]
[332603747,1721340632447,-210.46747941,0.00013387,2]
[332603749,1721340632456,-325.42742673,0.00013388,2]
[332603751,1721340632466,-597.40870787,0.00013399,2]
[332603753,1721340632475,-11492.0,0.000134,3]
[332603755,1721340632486,-946.5561817,0.00013403,2]
[332603757,1721340632496,-528.18474846,0.00013404,2]
[332603759,1721340632507,-503.38630231,0.00013404,2]
[332603786,1721340632751,-208.82,0.00013405,2]
[332603787,1721340632778,-366.11090361,0.00013457,2]
[332603788,1721340632787,-1435.48036598,0.00013479,2]
[332603789,1721340632798,-238076.1832,0.00013484,2]
[332603790,1721340632807,-195.0,0.00013488,2]
[332603791,1721340632817,-29814.6576,0.000135,2]
[332603792,1721340632827,-155.0,0.00013698,2]
[332603793,1721340632836,-168.62,0.00013699,2]
[332603794,1721340632845,-855.81,0.00013699,2]
[332603795,1721340632854,-382.43,0.00013699,2]
[332603796,1721340632864,-250.0,0.00013699,2]
[332603797,1721340632873,-206.92832689,0.00013763,2]
[332603798,1721340632882,-30962.35429862,0.0001379,2]
[332603799,1721340632892,-4119.20797617,0.00013799,2]
[332603800,1721340632901,-306.04152706,0.00013799,2]
[332603801,1721340632910,-11492.0,0.000138,5]
[332603802,1721340632920,-67359.90965406,0.0001386,2]
[332603803,1721340632932,-58407.61504698,0.0001386,2]
[332603804,1721340633016,-577.08950482,0.0001386,2]
[332603805,1721340633027,-1670.90790627,0.0001386,2]
[332603806,1721340633039,-1565.31339387,0.0001386,2]
[332603807,1721340633074,-30111.10348089,0.0001386,2]
[332603808,1721340633086,-9415.33628575,0.0001386,2]
[332603809,1721340633097,-909.3594811,0.0001386,2]
[332603810,1721340633108,-19346.85939705,0.0001386,2]
[332603811,1721340633119,-13244.90258862,0.0001386,2]
[332603812,1721340633130,-1770.36620858,0.0001386,2]
[332603813,1721340633148,-2000.0,0.0001386,2]
[332603849,1721340639118,-500.6964493,0.0001386,2]
[332603850,1721340639208,-199.85485715,0.0001386,2]
[332603851,1721340639219,-384.352,0.0001386,2]
[332603852,1721340639231,-325.82,0.0001386,2]
[332603853,1721340639242,-1988.46091552,0.0001386,2]
[332603854,1721340639253,-457.8345374,0.0001386,2]
[332603855,1721340639265,-638.82,0.0001386,2]
[332603856,1721340639277,-1411.40940451,0.0001386,2]
[332603857,1721340639288,-1469.28364703,0.0001386,2]
[332603858,1721340639326,-11709.60775064,0.0001386,2]
[332603859,1721340639337,-447.745704,0.0001386,2]
[332603860,1721340639352,-443.13092382,0.0001386,2]
[332603861,1721340639365,-46258.1305167,0.0001386,2]
[332603862,1721340639374,-212.7818,0.00013863,2]
[332603863,1721340639383,-500.0,0.00013887,2]
[332603864,1721340639393,-200.0,0.00013887,2]
[332603865,1721340639402,-500.0,0.00013888,2]
[332603866,1721340639411,-500.0,0.00013888,2]
[332603867,1721340639420,-200.0,0.00013888,2]
[332603868,1721340639429,-155.82,0.0001389,2]
[332603869,1721340639439,-4054.072,0.000139,2]
[332603870,1721340639449,-162.30891768,0.000139,2]
[332603871,1721340639459,-827.26923636,0.000139,2]
[332603872,1721340639470,-159.02,0.00013921,2]
[332603873,1721340639480,-155.82,0.0001399,2]
[332603874,1721340639491,-155.82,0.0001399,2]
[332603875,1721340639500,-379.65177583,0.00013996,2]
[332603876,1721340639510,-379.65177583,0.00013996,2]
[332603877,1721340639519,-1049.48043238,0.00013999,2]
[332603878,1721340639529,-103101.80441455,0.00014,2]
[332603879,1721340639541,-774.06996451,0.00014,2]
[332603880,1721340640009,-397.63098387,0.000139,2]
[332603881,1721340640021,-30.01480017,0.000139,2]
[332603882,1721340640031,-3197.76641569,0.00014,2]
[332603883,1721340640042,-1697.27162398,0.00014,2]
[332603884,1721340640053,-271.26559914,0.00014,2]
[332603885,1721340640068,-10516.89919784,0.00014,2]
[332603886,1721340640080,-3870.18624551,0.00014,2]
[332603887,1721340640092,-9920.5,0.00014,2]
[332603888,1721340640108,-4608.07243216,0.00014,2]
[332603889,1721340640119,-5473.23188571,0.00014,2]
[332603890,1721340640132,-1150.70064965,0.00014,2]
[332603891,1721340640147,-42740.4825254,0.00014,2]
[332603892,1721340640158,-342.30435035,0.00014,2]
[332603893,1721340640169,-1677.4,0.00014,2]
[332603894,1721340640180,-3755.125,0.00014,2]
[332603895,1721340640195,-256.89893274,0.00014,2]
[332603896,1721340640209,-670.7,0.00014,2]
[332603897,1721340640220,-63502.53377146,0.00014,2]
[332603898,1721340640231,-3200.6762738,0.00014,2]
[332603899,1721340640331,-82489.75677284,0.00014,2]
[332603900,1721340640342,-72695.16729025,0.00014,2]
[332603901,1721340640353,-578.34375556,0.00014,2]
[332603903,1721340640364,-373.89184271,0.00014,2]
[332603905,1721340640376,-91799.23822227,0.00014,2]
[332603907,1721340640387,-3674.45,0.00014,2]
[332603910,1721340640399,-84567.13992091,0.00014,2]
[332603912,1721340640417,-533.1,0.00014,2]
[332603969,1721340643009,-1137.05799174,0.00013999,2]
[332603970,1721340643020,-12648.71860019,0.00014,2]
[332603975,1721340643594,-4334.4188288,0.00014,2]
[332603976,1721340643610,-5557.37127244,0.00014,2]
[332603977,1721340643622,-49269.39928526,0.00014,2]
[332603978,1721340643634,-301.88553806,0.00014,2]
[332603988,1721340646291,-452.38660868,0.00014,2]
[332603989,1721340646330,-6218.61384342,0.00014,2]
[332603990,1721340646342,-8021.15857371,0.00014,2]
[332603991,1721340646353,-1250.0945842,0.00014,2]
[332603992,1721340646365,-2128.84910156,0.00014,2]
[332603993,1721340646377,-520.67915684,0.00014,2]
[332603994,1721340646388,-11998.74217153,0.00014,2]
[332603996,1721340646402,-3412.68286264,0.00014,2]
[332603997,1721340646416,-532.73319864,0.00014,2]
[332603998,1721340646427,-5593.92131764,0.00014,2]
[332603999,1721340646444,-1732.22080187,0.00014,2]
[332604001,1721340727703,150.0,0.00010959,2]
[332604002,1721340727726,3.76,0.00010959,2]
[332604003,1721340832035,-900.0,0.00011897,2]
[332604020,1721341166362,150.0,9.279e-05,2]
[332604021,1721341166385,150.0,9.279e-05,2]
[332604022,1721341166407,144.0,9.279e-05,2]
[332604023,1721341259328,150.0,0.0001113,2]
[332604024,1721341259351,150.0,0.0001113,2]
[332604025,1721341259374,150.0,0.0001113,2]
[332604026,1721341259397,150.0,0.0001113,2]
[332604027,1721341259419,150.0,0.0001113,2]
[332604028,1721341259441,150.0,0.0001113,2]
[332604029,1721341259463,150.0,0.0001113,2]
[332604030,1721341259485,150.0,0.0001113,2]
[332604031,1721341259505,150.0,0.0001113,2]
[332604032,1721341259529,119.111335,0.0001113,2]
[332604033,1721341321600,155.0,0.00011105,2]
[332604042,1721341508567,150.0,0.00011105,2]
[332604043,1721341508590,143.03052447,0.00011105,2]
[332604044,1721341510935,-164.00445469,0.00011161,2]
[332604045,1721341521376,-150.0,0.00011161,2]
[332604046,1721341552746,150.0,0.00011105,2]
[332604047,1721341552768,150.0,0.00011105,2]
[332604048,1721341552791,150.0,0.00011105,2]
[332604049,1721341552814,150.0,0.00011105,2]
[332604050,1721341552835,150.0,0.00011105,2]
[332604051,1721341552857,150.0,0.00011105,2]
[332604052,1721341552880,150.0,0.00011105,2]
[332604053,1721341552902,87.05799174,0.00011105,2]
[332604054,1721341554159,150.0,6.94e-05,2]
[332604055,1721341554186,13420.69903123,6.94e-05,2]
[332604056,1721341554615,-167.06,0.00011163,2]
[332604057,1721341555249,167.06,0.00011162,2]
[332604058,1721341555887,-188.95025076,0.00011162,2]
[332604059,1721341556428,-23.64152507,0.00011162,2]
[332604060,1721341556450,-212.14349993,0.00011187,2]
[332604061,1721341557245,-150.0,0.00011187,2]
[332604062,1721341558276,-150.0,0.00011187,2]
[332604063,1721341559067,-150.0,0.00011187,2]
[332604064,1721341559561,-197.36041834,0.00011187,2]
[332604065,1721341560540,-150.0,0.00011187,2]
[332604066,1721341561236,-150.0,0.00011186,2]
[332604067,1721341562651,-150.0,0.00011186,2]
[332604068,1721341563248,-150.0,0.00011187,2]
[332604069,1721341564017,-150.0,0.00011187,2]
[332604073,1721341592789,347.36,0.00010959,2]
[332604076,1721341620227,267.62549217,0.00015,14]
[332604077,1721341630015,150.0,0.00010959,2]
[332604078,1721341630038,62.81885339,0.00010959,2]
[332604080,1721341638226,150.0,0.00010959,2]
[332604081,1721341638251,15.0,0.00010959,2]
[332604085,1721341682509,210.69114661,0.0001,2]
[332604086,1721341682531,1575.73857788,0.0001,2]
[332604087,1721341707197,1285.144203,0.00011105,2]
[332604088,1721341715943,150.0,9.41e-05,2]
[332604089,1721341715967,304.28,9.41e-05,2]
[332604091,1721341729686,155.0,0.00011105,2]
[332604113,1721341771922,308.70478125,0.00011105,2]
[332604136,1721341832648,-500.0,0.00011161,2]
[332604137,1721341832658,-330.0,0.00011186,2]
[332604138,1721341832668,-400.78807392,0.00011193,2]
[332604139,1721341832687,-421.55839924,0.00011193,2]
[332604140,1721341832742,-177.65352684,0.00011193,2]
[332604141,1721341832752,-799.38147089,0.00011196,2]
[332604142,1721341832763,-277.50880542,0.00011196,2]
[332604143,1721341832780,-10.81318048,0.00011196,2]
[332604144,1721341832790,-413.89729694,0.00011196,2]
[332604145,1721341832801,-86.10270306,0.00011196,2]
[332604146,1721341832810,-250.0,0.00011198,2]
[332604147,1721341832819,-67.00843151,0.00011198,2]
[332604148,1721341832831,-83.98156849,0.00011198,2]
[332604149,1721341832840,-200.0,0.00011198,2]
[332604150,1721341832849,-1410.64,0.00011206,2]
[332604151,1721341832859,-499.99,0.00011206,2]
[332604152,1721341832868,-500.0,0.00011208,2]
[332604153,1721341832878,-1770.06071991,0.00011362,2]
[332604154,1721341832890,-5962.64295461,0.00011362,2]
[332604155,1721341832905,-1841.02372038,0.00011362,2]
[332604156,1721341832927,-14326.2726051,0.00011362,2]
[332604157,1721341832936,-155.0,0.00011673,2]
[332604158,1721341832946,-454.28,0.00011674,2]
[332604159,1721341832956,-263.75418329,0.00011913,2]
[332604160,1721341832965,-654.12,0.00011914,2]
[332604161,1721341832974,-364.65927674,0.00011916,2]
[332604162,1721341832984,-544.84128592,0.00011916,2]
[332604163,1721341832994,-654.12,0.00011917,2]
[332604164,1721341833003,-155.0,0.00011919,2]
[332604165,1721341833013,-654.12,0.0001192,2]
[332604167,1721341833023,-654.12,0.00011923,2]
[332604168,1721341833032,-654.12,0.00011926,2]
[332604169,1721341833042,-155.0,0.00011929,2]
[332604170,1721341833051,-654.12,0.00011929,2]
[332604171,1721341833061,-654.12,0.00011933,2]
[332604172,1721341833071,-654.12,0.00011936,2]
[332604173,1721341833080,-654.12,0.00011939,2]
[332604174,1721341833089,-150.0,0.00011939,2]
[332604175,1721341833099,-654.12,0.00011942,2]
[332604176,1721341833108,-654.12,0.00011945,2]
[332604177,1721341833118,-654.12,0.00011948,2]
[332604178,1721341833127,-654.12,0.00011951,2]
[332604179,1721341833136,-654.12,0.00011954,2]
[332604180,1721341833146,-654.12,0.00011958,2]
[332604181,1721341833155,-654.12,0.00011961,2]
[332604182,1721341833164,-654.12,0.00011964,2]
[332604183,1721341833174,-654.12,0.00011967,2]
[332604184,1721341833183,-654.12,0.0001197,2]
[332604185,1721341833192,-654.12,0.00011973,2]
[332604186,1721341833201,-174.73,0.00011981,2]
[332604187,1721341833211,-14717.39,0.00011995,2]
[332604188,1721341833221,-167.06,0.00012558,2]
[332604189,1721341833231,-1000.0,0.00012593,2]
[332604190,1721341833240,-150.0,0.000126,2]
[332604191,1721341833250,-291.99535452,0.00012876,2]
[332604192,1721341833259,-212.7818,0.00012877,2]
[332604193,1721341833268,-946.5561817,0.00013131,2]
[332604194,1721341833278,-1254.74861932,0.00013132,2]
[332604195,1721341833287,-491.51691083,0.00013283,2]
[332604196,1721341833296,-242.68954011,0.00013283,2]
[332604197,1721341833306,-4054.072,0.00013284,2]
[332604198,1721341833316,-638.91,0.00013284,2]
[332604199,1721341833329,-212.7037,0.00013284,2]
[332604200,1721341833338,-3774.7923,0.00013284,2]
[332604201,1721341833347,-2500.0,0.00013284,2]
[332604202,1721341833356,-1439.69738861,0.0001331,2]
[332604203,1721341833366,-366.83842223,0.0001331,2]
[332604204,1721341833375,-208.60184265,0.0001331,2]
[332604205,1721341833384,-155.13495288,0.00013327,2]
[332604206,1721341833394,-232.94,0.00013328,2]
[332604207,1721341833406,-10001.1292,0.00013384,2]
[332604208,1721341833415,-132517.2558,0.00013384,2]
[332604209,1721341833425,-1000.0,0.00013384,2]
[332604210,1721341833435,-500.0,0.000134,4]
[332604211,1721341833444,-2835.98042277,0.00013479,2]
[332604212,1721341833453,-203.34428799,0.00013483,2]
[332604213,1721341833463,-253.69470968,0.00013483,2]
[332604214,1721341833472,-379.65177583,0.00013489,2]
[332604215,1721341833482,-599.45308107,0.00013489,2]
[332604216,1721341833492,-812.12082895,0.00013499,2]
[332604217,1721341833502,-1000.0,0.000135,4]
[332604218,1721341833511,-1003.8012985,0.0001358,2]
[332604219,1721341833521,-217.34612163,0.000136,2]
[332604220,1721341833531,-1600.0,0.000136,4]
[332604221,1721341833540,-339.01,0.00013699,2]
[332604222,1721341833550,-250.0,0.00013699,2]
[332604223,1721341833559,-2100.0,0.000137,5]
[332604224,1721341833569,-1915.0,0.000137,2]
[332604225,1721341833578,-323.21624014,0.00013787,2]
[332604226,1721341833587,-35320.13760266,0.0001379,2]
[332604227,1721341833597,-5333.65131852,0.00013799,2]
[332604228,1721341833607,-2700.0,0.000138,5]
[332604229,1721341833617,-159.32160614,0.00013849,2]
[332604230,1721341833626,-150.0,0.0001386,2]
[332604231,1721341833636,-150.0,0.0001386,2]
[332604232,1721341833646,-150.0,0.0001386,2]
[332604233,1721341833655,-150.0,0.0001386,2]
[332604234,1721341833665,-150.0,0.0001386,2]